bitfinex/quotes_SOLUSD_20240717
["timestamp","ask_amount","ask_price","bid_price","bid_amount"]
[1721200967445,1.55618498,160.62,160.59,14.91]
[1721200967634,1.55618498,160.62,160.59,21.1369]
[1721200968029,1.55618498,160.62,160.6,14.91]
[1721200968344,1.55618498,160.62,160.59,14.91]
[1721200971449,1.55618498,160.62,160.59,21.137]
[1721200971927,1.55618498,160.62,160.6,14.91]
[1721200972129,21.55618498,160.62,160.6,14.91]
[1721200972821,21.55618498,160.62,160.58,21.7952]
[1721200973021,21.55618498,160.62,160.59,14.91]
[1721200974331,27.78198498,160.62,160.59,14.91]
[1721200974535,1.55618498,160.61,160.59,14.91]
[1721200974939,7.78238498,160.61,160.59,14.91]
[1721200975351,1.55618498,160.61,160.59,14.91]
[1721200976150,1.55618498,160.61,160.59,21.137]
[1721200976334,1.55618498,160.61,160.59,14.91]
[1721200978255,1.55618498,160.61,160.6,14.91]
[1721200978450,1.55618498,160.61,160.59,14.91]
[1721200981547,21.55618498,160.62,160.59,21.1369]
[1721200981850,1.55618498,160.62,160.6,6.2266]
[1721200982470,21.55618498,160.63,160.61,14.91]
[1721200982666,20.0,160.64,160.61,21.1361]
[1721200982959,27.78138498,160.64,160.61,14.91]
[1721200983340,21.55618498,160.64,160.61,14.91]
[1721200984262,26.2251,160.64,160.59,6.2269]
[1721200984457,26.2251,160.64,160.59,51.1369]
[1721200984638,6.2255,160.63,160.59,51.1369]
[1721200984835,6.2255,160.63,160.59,21.1369]
[1721200985141,1.55618498,160.62,160.59,6.2269]
[1721200985459,6.3965,160.61,160.56,6.2278]
[1721200985652,1.55618498,160.6,160.57,14.91]
[1721200986452,1.55618498,160.6,160.57,21.1376]
[1721200986756,0.34,160.61,160.57,21.1376]
[1721200986757,1.89618498,160.61,160.57,21.1376]
[1721200987351,1.89618498,160.61,160.58,6.2273]
[1721200987539,1.89618498,160.61,160.57,21.1377]
[1721200987735,1.89618498,160.61,160.58,14.91]
[1721200989337,1.89618498,160.61,160.58,21.1374]
[1721200989862,1.72618498,160.61,160.59,6.2269]
[1721200990032,1.55618498,160.61,160.59,21.1369]
[1721200990353,7.78168498,160.63,160.59,21.1369]
[1721200990652,20.34,160.62,160.59,21.1369]
[1721200990958,1.55618498,160.61,160.59,14.91]
[1721200991161,1.55618498,160.6,160.58,15.5684]
[1721200991351,1.55618498,160.6,160.58,36.7057]
[1721200992155,1.55618498,160.61,160.58,36.7057]
[1721200992543,1.55618498,160.61,160.58,14.91]
[1721200992544,1.55618498,160.6,160.58,14.91]
[1721200992738,1.55618498,160.6,160.57,14.91]
[1721200993360,1.55618498,160.6,160.57,21.1377]
[1721200993740,1.55618498,160.61,160.57,21.1377]
[1721200993967,1.55618498,160.6,160.59,6.227]
[1721200994261,1.55618498,160.6,160.58,21.1373]
[1721200994467,20.34,160.62,160.58,21.1373]
[1721200994468,1.55618498,160.61,160.58,21.1373]
[1721200994645,1.55618498,160.61,160.59,36.7037]
[1721200995340,1.89618498,160.62,160.59,30.4768]
[1721200998455,26.2256,160.63,160.61,14.91]
[1721200998456,20.0,160.63,160.61,14.91]
[1721200998756,20.0,160.63,160.61,21.1362]
[1721200998940,6.2247,160.65,160.61,21.1362]
[1721200998941,20.0,160.64,160.61,21.1362]
[1721200999141,1.55618498,160.63,160.61,14.91]
[1721201000072,1.55618498,160.63,160.6,14.91]
[1721201000236,7.78168498,160.63,160.6,14.91]
[1721201000842,1.55618498,160.63,160.6,21.1365]
[1721201003267,1.55618498,160.63,160.6,14.91]
[1721201003978,1.55618498,160.62,160.6,14.91]
[1721201004282,1.55618498,160.62,160.55,16.6542]
[1721201004283,7.78198498,160.62,160.58,6.2271]
[1721201004463,7.78198498,160.62,160.58,21.1371]
[1721201004779,1.55618498,160.62,160.58,21.1371]
[1721201005483,1.55618498,160.62,160.59,21.1369]
[1721201006283,1.55618498,160.62,160.59,14.91]
[1721201007862,7.78208498,160.62,160.59,14.91]
[1721201008482,1.55618498,160.62,160.6,14.91]
[1721201009664,1.55618498,160.62,160.58,21.7954]
[1721201009868,1.55618498,160.62,160.59,14.91]
[1721201010068,1.55618498,160.62,160.6,14.91]
[1721201010482,7.78208498,160.62,160.59,14.91]
[1721201010782,1.55618498,160.61,160.59,14.91]
[1721201011974,1.55618498,160.61,160.58,36.7053]
[1721201012580,1.55618498,160.62,160.6,6.2265]
[1721201012781,1.55618498,160.63,160.6,6.2265]
[1721201013360,1.55618498,160.63,160.6,21.1365]
[1721201013857,7.78128498,160.64,160.6,21.1365]
[1721201014064,26.2256,160.63,160.58,21.7951]
[1721201014285,1.72618498,160.62,160.59,14.91]
[1721201014473,1.72618498,160.62,160.58,14.91]
[1721201014676,1.72618498,160.62,160.58,21.1373]
[1721201014976,1.72618498,160.62,160.59,14.91]
[1721201018571,1.72618498,160.62,160.59,21.1369]
[1721201019075,1.72618498,160.62,160.6,14.91]
[1721201019781,14.91,160.65,160.56,14.91]
[1721201019782,6.2248,160.65,160.56,14.91]
[1721201019973,6.2244,160.66,160.61,21.1361]
[1721201020287,27.95098498,160.65,160.61,14.91]
[1721201020596,1.55618498,160.64,160.61,14.91]
[1721201020891,1.55618498,160.64,160.62,14.91]
[1721201021093,26.2248,160.65,160.62,14.91]
[1721201021481,1.55618498,160.64,160.62,14.91]
[1721201021794,26.2248,160.65,160.62,14.91]
[1721201023073,26.2248,160.65,160.63,14.91]
[1721201023074,20.0,160.65,160.63,14.91]
[1721201023277,21.55618498,160.65,160.63,14.91]
[1721201024100,27.78118498,160.65,160.63,14.91]
[1721201024301,26.225,160.65,160.63,14.91]
[1721201024489,20.0,160.65,160.63,14.91]
[1721201024686,26.2248,160.65,160.63,14.91]
[1721201025181,7.78038498,160.67,160.63,14.91]
[1721201025492,22.2074,160.69,160.63,14.91]
[1721201025493,21.55618498,160.66,160.63,14.91]
[1721201025706,1.89618498,160.68,160.64,14.91]
[1721201025902,6.2239,160.67,160.64,14.91]
[1721201026089,1.55616765,160.66,160.64,14.91]
[1721201026402,6.2247,160.65,160.63,14.91]
[1721201027075,6.2247,160.65,160.61,15.1566]
[1721201027076,1.55618498,160.64,160.61,15.1566]
[1721201027374,1.55618498,160.64,160.62,14.91]
[1721201028209,6.2247,160.65,160.62,14.91]
[1721201028586,1.55618498,160.64,160.62,14.91]
[1721201028791,6.2244,160.66,160.62,14.91]
[1721201028989,1.55618498,160.65,160.63,14.91]
[1721201029399,1.55618498,160.66,160.63,14.91]
[1721201029692,7.78068498,160.66,160.61,21.3827]
[1721201029894,7.78068498,160.66,160.63,14.91]
[1721201030204,7.78068498,160.66,160.62,14.91]
[1721201030503,1.55618498,160.65,160.62,14.91]
[1721201031206,1.55618498,160.65,160.62,21.1358]
[1721201031694,1.55618498,160.66,160.63,6.2254]
[1721201031894,1.55618498,160.66,160.63,14.91]
[1721201032297,7.78048498,160.66,160.63,14.91]
[1721201032496,1.55618498,160.65,160.59,6.2267]
[1721201032691,1.55618498,160.65,160.61,14.91]
[1721201032692,7.78128498,160.64,160.61,14.91]
[1721201032892,0.34,160.63,160.61,14.91]
[1721201033204,1.55618498,160.62,160.61,14.91]
[1721201034317,7.78198498,160.62,160.6,14.91]
[1721201034610,6.5655,160.63,160.6,14.91]
[1721201034806,1.55618498,160.62,160.6,14.91]
[1721201036676,6.2255,160.63,160.6,14.91]
[1721201037599,6.2252,160.64,160.6,14.91]
[1721201037805,1.55618498,160.63,160.6,14.91]
[1721201038883,1.55618498,160.63,160.6,21.1366]
[1721201039191,21.55618498,160.64,160.61,21.1361]
[1721201039397,21.55618498,160.64,160.61,14.91]
[1721201040607,27.78128498,160.64,160.61,14.91]
[1721201040907,6.226,160.62,160.59,14.91]
[1721201041104,7.95168498,160.63,160.59,14.91]
[1721201041311,7.95168498,160.63,160.6,14.91]
[1721201041510,7.95168498,160.63,160.58,6.2273]
[1721201041511,7.95168498,160.63,160.59,14.91]
[1721201042517,7.95168498,160.63,160.6,14.91]
[1721201042810,27.78138498,160.64,160.6,14.91]
[1721201043015,21.55618498,160.64,160.61,14.91]
[1721201043202,27.78128498,160.64,160.61,14.91]
[1721201043690,21.55618498,160.64,160.61,14.91]
[1721201045398,20.0,160.64,160.61,14.91]
[1721201045594,20.0,160.64,160.58,15.568]
[1721201045595,6.2255,160.63,160.58,15.568]
[1721201045803,1.55618498,160.62,160.6,14.91]
[1721201047698,7.78168498,160.63,160.6,14.91]
[1721201049117,7.78168498,160.63,160.58,21.7953]
[1721201049301,7.78168498,160.63,160.58,36.7053]
[1721201049615,7.78168498,160.63,160.59,14.91]
[1721201050815,7.78168498,160.63,160.59,21.1369]
[1721201051115,1.55618498,160.63,160.6,14.91]
[1721201051317,27.78138498,160.64,160.6,21.1365]
[1721201051621,27.78138498,160.64,160.59,6.227]
[1721201051822,27.78138498,160.64,160.6,14.91]
[1721201052035,6.2255,160.63,160.6,14.91]
[1721201052191,6.2255,160.63,160.58,21.7953]
[1721201052192,1.55618498,160.62,160.59,14.91]
[1721201052526,6.2255,160.63,160.6,14.91]
[1721201052527,7.78168498,160.63,160.6,14.91]
[1721201053120,7.78168498,160.63,160.59,14.91]
[1721201053428,7.78168498,160.63,160.58,21.7953]
[1721201053606,7.78168498,160.63,160.59,14.91]
[1721201054105,7.78168498,160.63,160.59,21.1369]
[1721201054416,7.78168498,160.63,160.58,21.7954]
[1721201054622,6.2258,160.62,160.59,14.91]
[1721201055003,7.78168498,160.63,160.59,14.91]
[1721201055523,7.78168498,160.63,160.59,21.1368]
[1721201055724,7.78168498,160.63,160.6,14.91]
[1721201056109,27.78138498,160.64,160.6,14.91]
[1721201056312,21.55618498,160.64,160.6,14.91]
[1721201056516,27.78128498,160.64,160.6,14.91]
[1721201057905,6.2246,160.66,160.62,14.91]
[1721201058109,6.2246,160.66,160.63,14.91]
[1721201058423,6.2248,160.65,160.62,14.91]
[1721201058732,6.2251,160.64,160.62,14.91]
[1721201059106,1.55618498,160.67,160.63,14.91]
[1721201059296,1.55614127,160.68,160.66,14.91]
[1721201059654,1.55614127,160.68,160.64,14.91]
[1721201059837,6.2239,160.67,160.64,14.91]
[1721201060132,7.77964127,160.68,160.64,14.91]
[1721201060327,1.5560705,160.67,160.65,14.91]
[1721201060824,7.77956976,160.68,160.65,14.91]
[1721201061129,1.55605318,160.67,160.65,14.91]
[1721201061423,6.2235,160.68,160.66,14.91]
[1721201061928,6.2231,160.69,160.66,14.91]
[1721201062112,20.0,160.68,160.66,14.91]
[1721201063418,26.2236,160.68,160.66,14.91]
[1721201063626,26.2236,160.68,160.65,14.91]
[1721201063802,26.2236,160.68,160.66,14.91]
[1721201064227,7.77994614,160.67,160.61,21.4462]
[1721201064425,7.77994614,160.67,160.65,14.91]
[1721201065017,20.0,160.68,160.65,14.91]
[1721201065220,21.55602648,160.68,160.66,14.91]
[1721201066733,1.72602193,160.69,160.67,14.91]
[1721201066935,1.72602193,160.69,160.66,14.91]
[1721201067319,7.94922193,160.69,160.67,14.91]
[1721201067513,20.0,160.68,160.67,14.91]
[1721201067925,20.0,160.68,160.66,14.91]
[1721201068813,7.94922193,160.69,160.67,14.91]
[1721201069331,1.72602193,160.69,160.65,14.91]
[1721201069529,6.2235,160.68,160.65,14.91]
[1721201069706,7.94912193,160.69,160.65,21.1346]
[1721201069908,1.72602193,160.69,160.66,14.91]
[1721201070325,27.94912193,160.69,160.66,14.91]
[1721201073032,0.17,160.68,160.62,30.0]
[1721201073212,6.2242,160.67,160.64,14.91]
[1721201073411,21.55615589,160.66,160.64,14.91]
[1721201073728,7.78035641,160.67,160.65,14.91]
[1721201073938,6.2236,160.68,160.65,14.91]
[1721201074137,21.5560899,160.67,160.65,14.91]
[1721201074713,20.0,160.67,160.66,14.91]
[1721201075127,7.77968466,160.68,160.65,14.91]
[1721201075435,1.55608451,160.67,160.65,14.91]
[1721201076040,1.7260854,160.69,160.66,14.91]
[1721201076344,1.7260854,160.69,160.64,14.91]
[1721201076345,0.17,160.69,160.68,14.91]
[1721201076510,0.17,160.69,160.67,14.91]
[1721201077011,0.17,160.69,160.68,14.91]
[1721201078030,6.3931,160.69,160.68,14.91]
[1721201078213,6.3931,160.69,160.63,6.2254]
[1721201078214,6.2235,160.68,160.63,6.2254]
[1721201078423,6.2235,160.68,160.66,14.91]
[1721201078833,7.94918378,160.69,160.66,14.91]
[1721201079951,1.72608378,160.69,160.66,14.91]
[1721201080347,1.72608378,160.69,160.67,14.91]
[1721201083264,1.55598919,160.72,160.67,14.91]
[1721201083432,7.77798919,160.72,160.68,14.91]
[1721201083632,20.34,160.71,160.68,14.91]
[1721201083836,1.55583356,160.7,160.68,14.91]
[1721201084050,26.5624,160.71,160.68,14.91]
[1721201084354,1.55582434,160.7,160.68,14.91]
[1721201084952,21.89583203,160.71,160.68,14.91]
[1721201086353,21.89583203,160.71,160.67,6.2239]
[1721201086354,21.89583203,160.71,160.69,14.91]
[1721201087227,20.0,160.71,160.69,14.91]
[1721201087430,12.4734,160.74,160.7,14.91]
[1721201087629,1.55556816,160.75,160.71,14.91]
[1721201087840,1.55556816,160.75,160.72,14.91]
[1721201088036,1.55556816,160.75,160.67,15.2028]
[1721201088037,1.555374,160.78,160.74,14.91]
[1721201088466,1.555374,160.78,160.74,21.1311]
[1721201088765,1.555374,160.78,160.75,14.91]
[1721201089142,7.77432657,160.79,160.75,14.91]
[1721201089458,7.77432657,160.79,160.76,14.91]
[1721201090277,21.55502323,160.78,160.76,14.91]
[1721201090753,21.55502323,160.78,160.77,14.91]
[1721201090966,20.0,160.78,160.77,14.91]
[1721201092532,20.0,160.78,160.76,14.91]
[1721201093659,1.55502057,160.77,160.73,16.5013]
[1721201093872,6.2204,160.76,160.72,6.2218]
[1721201094031,6.2204,160.76,160.74,14.91]
[1721201094227,1.55524536,160.75,160.74,14.91]
[1721201094431,1.55524536,160.75,160.69,16.4343]
[1721201094627,0.34,160.74,160.71,14.91]
[1721201094861,0.34,160.74,160.72,14.91]
[1721201095250,26.2209,160.75,160.72,14.91]
[1721201095750,20.0,160.75,160.72,21.1319]
[1721201095945,21.89548475,160.76,160.73,14.91]
[1721201096145,20.0,160.76,160.73,14.91]
[1721201096343,20.0,160.76,160.75,14.91]
[1721201097767,20.0,160.76,160.73,6.2215]
[1721201097941,1.55535813,160.77,160.74,14.91]
[1721201097942,21.55535813,160.77,160.74,14.91]
[1721201098963,21.55535813,160.77,160.74,21.1311]
[1721201099865,21.55535813,160.77,160.75,14.91]
[1721201100168,20.0,160.77,160.76,14.91]
[1721201100463,20.0,160.77,160.75,14.91]
[1721201100668,21.55515149,160.77,160.75,14.91]
[1721201100849,21.55515149,160.77,160.74,21.1312]
[1721201101043,1.55513282,160.76,160.69,16.4343]
[1721201101267,1.72513282,160.76,160.69,16.4343]
[1721201101562,6.3909,160.75,160.71,14.91]
[1721201101946,6.3909,160.75,160.71,21.1323]
[1721201102143,0.17,160.76,160.73,6.2215]
[1721201102472,20.34,160.76,160.73,14.91]
[1721201102981,26.5606,160.76,160.69,16.4343]
[1721201103144,1.55547976,160.75,160.72,14.91]
[1721201103347,1.55547976,160.75,160.73,14.91]
[1721201104257,1.89532524,160.76,160.73,14.91]
[1721201104853,1.89532524,160.76,160.74,14.91]
[1721201105061,1.72532524,160.76,160.74,14.91]
[1721201105265,1.55532524,160.76,160.74,14.91]
[1721201105869,1.55532524,160.76,160.73,6.2215]
[1721201106169,20.0,160.77,160.74,21.1311]
[1721201106170,21.55524474,160.77,160.74,21.1311]
[1721201106372,21.55524474,160.77,160.75,6.2207]
[1721201106549,1.55524474,160.77,160.75,6.2207]
[1721201106752,1.55524474,160.77,160.75,14.91]
[1721201107068,1.55524474,160.77,160.74,21.1312]
[1721201107377,1.55515501,160.78,160.75,21.1308]
[1721201107547,1.55506403,160.8,160.75,21.1308]
[1721201107749,1.89501014,160.79,160.75,21.1308]
[1721201107972,1.89501014,160.79,160.76,14.91]
[1721201108653,21.89501014,160.79,160.76,14.91]
[1721201108866,21.89501014,160.79,160.76,21.1303]
[1721201109073,0.34,160.79,160.76,14.91]
[1721201109260,1.89500883,160.79,160.76,14.91]
[1721201109574,1.89500883,160.79,160.77,14.91]
[1721201110179,0.34,160.79,160.77,14.91]
[1721201110381,1.8950076,160.79,160.76,14.91]
[1721201110561,0.34,160.79,160.76,14.91]
[1721201110767,0.34,160.8,160.76,14.91]
[1721201110965,1.89500708,160.8,160.74,16.3494]
[1721201111170,1.89500708,160.8,160.77,14.91]
[1721201111377,8.11390708,160.8,160.77,14.91]
[1721201112761,1.89500708,160.8,160.77,14.91]
[1721201113857,1.89500708,160.8,160.78,14.91]
[1721201114675,7.77256433,160.84,160.79,21.1292]
[1721201114976,1.55496433,160.84,160.8,14.91]
[1721201115158,6.218,160.83,160.8,14.91]
[1721201115858,20.0,160.82,160.8,14.91]
[1721201116476,20.0,160.82,160.81,14.91]
[1721201117767,26.2181,160.82,160.81,14.91]
[1721201117980,20.0,160.82,160.81,14.91]
[1721201118694,15.0,160.82,160.81,14.91]
[1721201119095,1.55496433,160.84,160.81,14.91]
[1721201119303,7.77069568,160.87,160.83,14.91]
[1721201119594,7.77069568,160.87,160.84,14.91]
[1721201119595,1.55429568,160.87,160.84,14.91]
[1721201119781,1.55429568,160.87,160.85,14.91]
[1721201120177,7.77000055,160.88,160.85,14.91]
[1721201120873,7.77000055,160.88,160.71,15.7509]
[1721201120874,14.91,160.86,160.71,15.7509]
[1721201121081,14.91,160.86,160.73,44.91]
[1721201121082,6.2207,160.76,160.73,44.91]
[1721201121297,1.5553186,160.75,160.73,30.0]
[1721201121479,27.77581758,160.76,160.72,14.91]
[1721201122173,20.0,160.76,160.72,21.1318]
[1721201122498,0.34,160.77,160.73,14.91]
[1721201122677,1.89519263,160.77,160.74,14.91]
[1721201122871,8.11529263,160.77,160.74,14.91]
[1721201123067,20.0,160.76,160.74,14.91]
[1721201123566,1.89519263,160.77,160.74,14.91]
[1721201123767,1.89519263,160.77,160.75,14.91]
[1721201124384,1.89519263,160.77,160.73,6.2214]
[1721201124985,20.0,160.78,160.74,6.2211]
[1721201125696,20.0,160.78,160.75,6.2207]
[1721201126001,20.0,160.79,160.75,6.2207]
[1721201126198,21.55499561,160.79,160.75,6.2207]
[1721201126699,27.77419561,160.79,160.74,6.2211]
[1721201128783,27.77419561,160.79,160.75,6.2208]
[1721201128987,27.77419561,160.79,160.71,15.7509]
[1721201129184,45.0,160.78,160.71,15.7509]
[1721201129402,6.2209,160.75,160.71,15.7509]
[1721201129772,1.55539237,160.74,160.71,15.7509]
[1721201130201,1.55539207,160.75,160.71,21.973]
[1721201131083,1.55534199,160.76,160.71,21.973]
[1721201131985,1.55534199,160.76,160.72,6.2217]
[1721201133807,20.34,160.77,160.74,6.2212]
[1721201134106,7.77564641,160.76,160.71,15.7509]
[1721201135207,7.77536238,160.77,160.71,15.7509]
[1721201135389,21.55526217,160.76,160.71,21.9729]
[1721201135998,20.0,160.76,160.71,15.7509]
[1721201136200,0.34,160.78,160.71,15.7509]
[1721201136588,0.34,160.79,160.71,15.7509]
[1721201137088,20.34,160.79,160.71,15.7509]
[1721201137290,1.55515596,160.78,160.71,15.7509]
[1721201137615,7.77495596,160.78,160.73,6.2215]
[1721201137921,20.0,160.77,160.73,6.2215]
[1721201138213,1.5551466,160.79,160.71,15.7509]
[1721201138409,1.55499045,160.81,160.71,15.7509]
[1721201138916,6.2192,160.8,160.74,6.2211]
[1721201139087,1.55499007,160.79,160.74,6.2211]
[1721201139282,1.55499007,160.79,160.76,6.2204]
[1721201139492,1.55499007,160.79,160.75,6.2207]
[1721201139688,7.77439007,160.79,160.73,6.2212]
[1721201140084,6.2194,160.79,160.73,6.2212]
[1721201141192,6.2194,160.79,160.74,6.221]
[1721201143723,6.5589,160.8,160.74,6.221]
[1721201143922,21.89498761,160.79,160.74,6.221]
[1721201144122,21.89498761,160.79,160.75,6.2208]
[1721201144290,28.11428761,160.79,160.72,0.95331009]
[1721201144586,26.5593,160.79,160.72,0.95331009]
[1721201144988,26.5593,160.79,160.71,45.5109]
[1721201145412,26.5593,160.79,160.74,6.2212]
[1721201146199,26.5593,160.79,160.76,14.87]
[1721201146915,7.7746872,160.78,160.73,6.2215]
[1721201147113,6.2204,160.76,160.72,21.0919]
[1721201147304,7.77576939,160.76,160.71,15.7509]
[1721201147496,7.77570727,160.76,160.72,6.2219]
[1721201147890,22.64570727,160.76,160.72,6.2219]
[1721201148114,16.42530727,160.76,160.72,6.2219]
[1721201148809,1.55530727,160.76,160.72,6.2219]
[1721201149114,1.55530727,160.76,160.71,30.6209]
[1721201149605,14.87,160.77,160.71,30.6209]
[1721201149795,1.55522863,160.78,160.74,6.221]
[1721201149987,20.0,160.79,160.75,6.2207]
[1721201150198,1.55498563,160.78,160.75,6.2207]
[1721201150409,21.55498563,160.78,160.75,6.2207]
[1721201150719,20.0,160.78,160.75,6.2207]
[1721201152816,36.42498519,160.78,160.72,14.87]
[1721201153125,0.17,160.77,160.74,6.2211]
[1721201153421,36.42498519,160.78,160.74,6.2211]
[1721201154193,21.55498519,160.78,160.74,6.2211]
[1721201154415,21.55506183,160.78,160.74,6.2211]
[1721201154591,21.55506073,160.78,160.74,6.2211]
[1721201156424,27.77476073,160.78,160.73,6.2216]
[1721201156598,6.5601,160.77,160.73,6.2216]
[1721201156917,20.0,160.76,160.73,6.2216]
[1721201157293,26.2201,160.77,160.73,6.2216]
[1721201157911,20.0,160.77,160.73,6.2216]
[1721201159216,20.0,160.77,160.74,6.2211]
[1721201160408,14.87,160.75,160.71,15.7509]
[1721201160731,14.87,160.75,160.7,6.2227]
[1721201160732,16.42543611,160.74,160.7,6.2227]
[1721201160895,16.42543611,160.74,160.68,14.87]
[1721201161101,16.42543611,160.74,160.67,22.8518]
[1721201161102,14.87,160.74,160.71,6.2222]
[1721201161423,1.55540319,160.75,160.71,6.2222]
[1721201161424,16.42540319,160.75,160.71,6.2222]
[1721201161840,14.87,160.74,160.71,6.2222]
[1721201162520,16.42540319,160.75,160.71,6.2223]
[1721201163630,16.42540319,160.75,160.72,6.2218]
[1721201163817,14.87,160.75,160.72,6.2218]
[1721201165137,1.89536037,160.76,160.72,6.2218]
[1721201165435,41.3943,160.77,160.74,6.2211]
[1721201165839,41.3943,160.77,160.73,6.2215]
[1721201166615,34.87,160.77,160.74,6.2212]
[1721201167742,20.0,160.77,160.71,14.87]
[1721201167913,21.55499948,160.8,160.72,14.87]
[1721201168237,14.87,160.78,160.72,14.87]
[1721201168445,20.0,160.77,160.75,6.2207]
[1721201168625,14.87,160.78,160.75,6.2207]
[1721201169316,16.42498032,160.79,160.76,6.2203]
[1721201169518,20.0,160.78,160.75,6.2207]
[1721201170041,34.87,160.78,160.75,6.2207]
[1721201170340,14.87,160.78,160.75,6.2207]
[1721201170640,22.64428026,160.79,160.75,6.2207]
[1721201171317,16.42498026,160.79,160.73,30.0021]
[1721201172443,22.64428026,160.79,160.75,6.2207]
[1721201172645,21.0893,160.79,160.75,6.2207]
[1721201174224,14.87,160.79,160.75,6.2207]
[1721201174558,21.0893,160.79,160.74,6.2211]
[1721201175537,21.0897,160.78,160.73,15.1321]
[1721201175855,21.72497955,160.77,160.69,16.0491]
[1721201176081,21.0916,160.73,160.69,16.0491]
[1721201176368,14.87,160.71,160.64,16.0491]
[1721201176573,14.87,160.7,160.65,14.87]
[1721201176751,14.87,160.71,160.64,16.0491]
[1721201176949,14.87,160.71,160.66,14.87]
[1721201177359,14.87,160.71,160.65,14.87]
[1721201177553,1.55567031,160.71,160.66,6.2242]
[1721201177851,14.87,160.69,160.64,22.2738]
[1721201178044,14.87,160.68,160.64,16.0491]
[1721201178673,14.87,160.67,160.64,16.0491]
[1721201178869,14.87,160.68,160.63,6.2251]
[1721201179074,34.87,160.67,160.63,6.2251]
[1721201179545,14.87,160.67,160.63,6.2251]
[1721201179977,14.87,160.68,160.63,14.87]
[1721201180270,14.87,160.68,160.64,6.225]
[1721201182278,1.55598907,160.67,160.64,6.225]
[1721201182652,14.87,160.68,160.63,14.87]
[1721201182951,14.87,160.69,160.64,14.87]
[1721201183153,20.0,160.68,160.63,14.87]
[1721201183373,34.87,160.68,160.64,6.225]
[1721201183979,14.87,160.67,160.63,6.2254]
[1721201184370,26.2235,160.68,160.63,6.2254]
[1721201184671,34.87,160.68,160.64,6.225]
[1721201184989,14.87,160.67,160.63,6.2254]
[1721201186595,34.87,160.68,160.64,6.225]
[1721201186887,34.87,160.68,160.65,6.2246]
[1721201187457,20.0,160.68,160.63,21.0951]
[1721201187657,34.87,160.68,160.63,21.0951]
[1721201187879,14.87,160.68,160.63,21.0951]
[1721201188087,21.55604789,160.67,160.64,6.2249]
[1721201188381,34.87,160.67,160.64,6.2249]
[1721201189456,34.87,160.67,160.63,6.2254]
[1721201190174,6.223,160.7,160.62,14.87]
[1721201190377,14.87,160.68,160.63,14.87]
[1721201191056,14.87,160.67,160.64,6.225]
[1721201191261,14.87,160.67,160.63,6.2253]
[1721201192287,14.87,160.67,160.64,6.225]
[1721201192570,14.87,160.65,160.57,116.4197035]
[1721201192780,14.87,160.63,160.57,116.4197035]
[1721201192996,6.49668275,160.68,160.62,14.87]
[1721201193294,14.87,160.68,160.62,14.87]
[1721201193581,14.87,160.68,160.63,16.11340897]
[1721201193787,14.87,160.68,160.63,14.87]
[1721201194088,14.87,160.68,160.62,14.87]
[1721201194272,14.87,160.67,160.63,6.2254]
[1721201194591,14.87,160.66,160.63,6.2254]
[1721201194887,22.65007173,160.67,160.61,14.87]
[1721201195191,14.87,160.65,160.57,126.4197035]
[1721201195396,14.87,160.64,160.59,21.0966]
[1721201195683,14.87,160.64,160.6,6.2264]